bitfinex/quotes_ETHUSD_20260305
["timestamp","ask_amount","ask_price","bid_price","bid_amount"]
[1772697232604,4.19717169,2099.4,2098.5,0.0011]
[1772697232797,2.1533137,2099.4,2098.5,1.19242482]
[1772697233112,2.1533137,2099.5,2098.6,1.49202065]
[1772697233410,1.19081642,2099.4,2098.7,1.1912136]
[1772697234510,1.19081642,2099.4,2098.3,0.0011]
[1772697234511,1.56114574,2099.2,2098.0,2.68468927]
[1772697234698,5.54213012,2099.4,2098.1,1.49202065]
[1772697235417,2.1533137,2099.3,2098.2,1.19149747]
[1772697236012,2.1533137,2099.3,2098.0,1.19267771]
[1772697236013,1.56114574,2099.2,2098.0,1.19267771]
[1772697236193,3.34413012,2099.4,2098.1,1.49202065]
[1772697236399,0.5,2099.1,2098.1,1.49202065]
[1772697236704,0.5,2099.1,2098.0,1.19267771]
[1772697237017,1.56114574,2098.9,2098.0,0.0011]
[1772697237358,1.1912136,2098.7,2098.0,0.0011]
[1772697237641,2.75235934,2098.7,2098.0,0.0011]
[1772697237802,4.90567304,2098.7,2098.0,0.0011]
[1772697238002,4.90567304,2098.7,2097.2,6.26025055]
[1772697238003,1.56114574,2098.5,2096.4,1.49202065]
[1772697238237,1.56114574,2098.5,2096.8,1.19229301]
[1772697238238,2.1533137,2098.1,2096.8,1.19229301]
[1772697238520,3.71445944,2098.2,2096.8,1.19529301]
[1772697238684,2.1533137,2098.1,2096.8,1.19529301]
[1772697239014,1.56114574,2098.2,2096.8,0.003]
[1772697239015,3.71445944,2098.0,2096.8,0.003]
[1772697239516,2.1533137,2097.8,2096.8,0.003]
[1772697239719,1.19166785,2097.9,2096.8,1.49502065]
[1772697240283,4.76643042,2098.1,2096.8,1.49502065]
[1772697240508,2.7603677,2098.0,2096.8,1.49502065]
[1772697241033,3.60500373,2097.8,2096.7,1.15974382]
[1772697241227,3.60500373,2097.8,2097.7,0.0011]
[1772697241428,3.60500373,2097.8,2096.5,1.19246362]
[1772697241429,1.56114574,2097.7,2096.5,1.19246362]
[1772697241638,2.75590555,2097.6,2096.6,1.49202065]
[1772697241823,1.69172466,2097.8,2096.6,1.49202065]
[1772697242205,2.04385799,2098.2,2096.6,1.49202065]
[1772697242206,1.19144069,2098.3,2096.6,1.49202065]
[1772697242436,2.75500634,2098.2,2096.8,1.49202065]
[1772697242797,1.56114574,2098.1,2096.8,1.49202065]
[1772697243029,4.31615208,2098.0,2096.8,1.49202065]
[1772697243332,1.19172466,2097.8,2096.5,2.68448427]
[1772697243546,1.19168564,2097.9,2096.6,1.49202065]
[1772697244211,1.19168564,2097.9,2096.7,3.02602065]
[1772697244526,1.19168564,2097.9,2096.7,1.49202065]
[1772697244720,1.19168564,2097.9,2096.7,3.02602065]
[1772697245096,1.19168564,2097.9,2096.7,1.49202065]
[1772697245097,2.75283138,2097.9,2096.7,1.49202065]
[1772697245630,1.56114574,2097.8,2096.8,1.19229301]
[1772697246528,0.5,2097.6,2096.8,1.19229301]
[1772697246827,0.5,2097.6,2096.7,2.68433059]
[1772697247131,1.19168564,2097.9,2096.8,1.49202065]
[1772697248009,4.76657618,2098.0,2096.8,1.49202065]
[1772697248010,1.19161105,2098.0,2097.0,1.49202065]
[1772697248700,1.19138391,2098.4,2097.0,1.49202065]
[1772697248899,1.19125039,2098.7,2097.0,1.49202065]
[1772697250009,1.19125039,2098.7,2097.2,1.49202065]
[1772697250221,1.19125039,2098.7,2097.4,1.49202065]
[1772697250601,1.19125039,2098.7,2097.1,1.19212245]
[1772697250808,1.19125039,2098.7,2097.2,1.49202065]
[1772697250809,2.75172722,2098.6,2097.2,1.49202065]
[1772697251007,2.75239613,2098.7,2097.2,1.49202065]
[1772697251237,1.19125039,2098.7,2097.2,1.49202065]
[1772697251438,4.76422917,2099.0,2097.2,1.49202065]
[1772697251439,1.19104335,2099.0,2097.2,1.49202065]
[1772697251626,8.36897102,2099.1,2097.2,1.49202065]
[1772697251627,3.23486496,2099.1,2097.2,1.49202065]
[1772697251812,1.19100697,2099.1,2097.2,1.49202065]
[1772697252214,2.75395224,2099.0,2097.4,1.49202065]
[1772697252403,1.56114574,2099.0,2097.5,1.53]
[1772697252624,6.35891611,2098.9,2097.6,1.53]
[1772697252830,0.001,2097.8,2097.6,1.53]
[1772697253035,3.6055723,2098.9,2097.6,1.53]
[1772697253336,3.6055723,2098.9,2097.7,1.49202065]
[1772697253535,1.56114574,2099.0,2097.7,1.49202065]
[1772697253737,2.04442656,2098.5,2097.3,2.68402942]
[1772697254043,3.6055723,2098.8,2097.4,1.49202065]
[1772697254243,1.1912136,2098.7,2097.5,1.19189511]
[1772697254739,2.75218909,2099.0,2097.6,1.49202065]
[1772697255035,1.56114574,2098.9,2097.7,1.528]
[1772697255436,1.56114574,2098.9,2097.6,3.02002065]
[1772697256025,3.6055723,2098.9,2097.6,1.49202065]
[1772697256238,1.19115685,2098.8,2097.7,1.19178147]
[1772697256445,0.5,2098.7,2097.7,1.19178147]
[1772697257273,1.19115685,2098.8,2097.8,1.49202065]
[1772697257572,1.19115685,2098.8,2097.7,1.19178147]
[1772697257739,1.19115685,2098.8,2097.7,4.20980212]
[1772697258080,6.91787672,2099.3,2097.8,1.49202065]
[1772697258081,1.19092987,2099.2,2097.8,1.49202065]
[1772697258355,1.19092987,2099.2,2097.7,2.71778147]
[1772697258356,2.04442656,2098.6,2097.7,1.1917739]
[1772697258575,3.6055723,2098.6,2097.7,1.1917739]
[1772697258730,1.66243719,2098.5,2097.2,2.68406119]
[1772697258929,1.66243719,2098.5,2097.2,1.19204054]
[1772697259136,2.04442656,2098.6,2097.2,1.19204054]
[1772697259137,1.66243719,2098.3,2097.2,1.19204054]
[1772697259916,1.66243719,2098.8,2097.3,1.78381891]
[1772697260032,2.75554843,2098.7,2097.3,1.78381891]
[1772697260236,2.75554843,2098.7,2097.5,1.78381891]
[1772697260237,1.19127037,2098.6,2097.5,1.78381891]
[1772697260929,1.19127037,2098.6,2097.5,3.30681891]
[1772697261335,1.19127037,2098.6,2097.6,1.78381891]
[1772697262265,4.76492527,2098.7,2097.7,1.19178147]
[1772697262636,4.76492527,2098.7,2097.7,2.97560038]
[1772697263370,4.76492527,2098.7,2097.8,1.78381891]
[1772697263530,4.76492527,2098.7,2097.8,3.30481891]
[1772697264057,2.04442656,2099.1,2097.8,3.30481891]
[1772697264058,0.001,2099.3,2097.9,1.78381891]
[1772697264260,0.001,2099.3,2098.1,1.78381891]
[1772697264458,1.19163071,2099.8,2098.3,1.78381891]
[1772697265888,1.19160053,2099.8,2098.5,1.78381891]
[1772697266376,1.19160053,2099.8,2098.6,1.519]
[1772697266678,0.001,2099.8,2098.7,1.1912136]
[1772697266875,2.04542656,2099.8,2098.7,1.1912136]
[1772697267057,2.04542656,2099.8,2098.7,2.86942308]
[1772697268172,2.04542656,2099.8,2098.8,1.517]
[1772697268654,0.001,2099.8,2099.0,1.19104335]
[1772697269745,0.001,2099.8,2099.0,2.86925283]
[1772697269952,1.70406991,2099.8,2098.5,4.76519043]
[1772697270183,3.74749647,2099.7,2098.5,4.76519043]
[1772697270680,1.19070299,2099.6,2098.5,2.86953661]
[1772697270885,1.19070299,2099.6,2098.6,1.514]
[1772697272195,1.19070299,2099.6,2098.6,3.19220948]
[1772697272406,4.76281196,2099.7,2098.5,1.19132713]
[1772697272407,1.19064751,2099.7,2098.7,3.19220948]
[1772697272566,1.19064751,2099.7,2098.4,2.869545]
[1772697272567,3.74749647,2099.5,2098.4,2.869545]
[1772697272762,1.19081642,2099.4,2098.4,2.869545]
[1772697273312,1.70306991,2099.2,2098.1,1.19151498]
[1772697273481,1.70306991,2099.2,2098.1,2.70451498]
[1772697273996,2.75595361,2099.1,2098.1,2.70451498]
[1772697274170,2.75595361,2099.1,2097.7,4.76702006]
[1772697274171,1.70306991,2099.0,2097.7,6.44531256]
[1772697274367,4.80038017,2099.1,2097.7,6.44531256]
[1772697274368,1.70306991,2098.8,2097.7,2.86999095]
[1772697274563,3.74749647,2098.8,2097.7,1.19178147]
[1772697274775,2.89434028,2098.6,2097.7,1.19178147]
[1772697274979,2.04442656,2098.5,2097.5,0.0011]
[1772697275293,1.70306991,2098.4,2097.5,0.0011]
[1772697275605,1.70306991,2098.4,2097.5,1.19298972]
[1772697275773,1.70306991,2098.4,2097.5,0.0011]
[1772697275969,1.70306991,2098.3,2097.5,0.0011]
[1772697276396,1.70306991,2098.1,2097.1,1.19212245]
[1772697277385,1.70306991,2098.1,2097.0,1.19324246]
[1772697277386,1.19161105,2098.0,2097.0,1.19324246]
[1772697277603,1.70306991,2097.7,2097.0,0.0011]
[1772697277911,1.70306991,2097.7,2096.2,8.1175472]
[1772697277912,2.04442656,2097.8,2096.0,1.19783535]
[1772697277913,1.70306991,2097.1,2096.0,1.19783535]
[1772697278109,2.75746042,2097.0,2095.7,1.67820948]
[1772697278272,4.10537762,2097.7,2095.7,1.67820948]
[1772697278273,2.1533137,2098.1,2095.7,1.67820948]
[1772697278607,1.19144069,2098.3,2097.5,0.0011]
[1772697278811,2.8945106,2098.3,2097.5,0.0011]
[1772697278981,1.70306991,2098.3,2097.5,0.0011]
[1772697279406,1.19149747,2098.2,2097.5,0.0011]
[1772697279799,1.19149747,2098.2,2097.5,1.5121]
[1772697280006,2.89455201,2098.3,2097.5,1.5121]
[1772697280414,1.70306991,2098.3,2097.5,1.5121]
[1772697280713,1.19239885,2098.4,2097.5,1.5121]
[1772697281220,2.89546876,2098.4,2097.4,2.64404436]
[1772697281405,1.19239885,2098.4,2097.4,2.64404436]
[1772697281779,1.19238714,2098.4,2097.4,2.64404436]
[1772697282010,0.001,2098.4,2097.5,1.67820948]
[1772697282313,3.74749647,2099.2,2097.5,1.67820948]
[1772697282314,4.93848308,2099.2,2097.5,1.67820948]
[1772697282493,1.19098661,2099.1,2097.5,1.67820948]
[1772697283207,1.19096356,2099.2,2097.7,1.67820948]
[1772697283511,1.70306991,2099.3,2097.9,1.67820948]
[1772697284020,2.7563408,2099.2,2098.0,1.51]
[1772697284311,1.70306991,2099.3,2098.0,1.51]
[1772697284713,1.70306991,2099.3,2098.1,1.67820948]
[1772697285486,1.19092987,2099.2,2098.3,1.19144069]
[1772697285688,1.19092987,2099.2,2098.4,1.509]
[1772697286219,3.74749647,2098.9,2097.9,1.509]
[1772697286417,3.74749647,2098.9,2098.0,1.509]
[1772697286620,3.74749647,2098.9,2097.5,1.67820948]
[1772697286828,3.74749647,2098.9,2097.6,1.508]
[1772697287135,3.74749647,2098.9,2097.5,1.67820948]
[1772697287136,1.70306991,2099.1,2097.7,1.67820948]
[1772697287299,1.70306991,2098.7,2097.6,1.508]
[1772697287501,1.19138391,2098.4,2097.4,1.508]
[1772697288296,1.19138391,2098.4,2097.2,1.67930948]
[1772697288502,1.19138391,2098.4,2097.3,1.508]
[1772697288723,1.19138391,2098.4,2097.2,1.67930948]
[1772697289127,1.19138391,2098.4,2097.3,1.508]
[1772697289439,2.82781154,2098.4,2097.4,1.508]
[1772697289812,2.82781154,2098.4,2097.5,1.19189511]
[1772697290405,2.82781154,2098.4,2097.2,4.76822638]
[1772697290406,1.63642763,2098.3,2097.7,0.0011]
[1772697290607,1.63642763,2098.1,2097.4,1.507]
[1772697290833,1.63642763,2098.1,2096.9,2.69923615]
[1772697291135,1.63642763,2098.1,2097.5,0.0011]
[1772697291843,2.82803868,2098.0,2097.5,0.0011]
[1772697293302,1.63642763,2097.9,2097.5,0.0011]
[1772697293743,1.19172466,2097.8,2097.5,0.0011]
[1772697294768,1.19155426,2098.1,2097.5,0.0011]
[1772697295451,2.82798189,2098.1,2097.5,0.0011]
[1772697295864,2.82798189,2098.1,2096.5,1.19246362]
[1772697295865,1.63642763,2098.0,2096.5,1.19246362]
[1772697296025,1.63642763,2098.0,2096.6,1.504]
[1772697296360,1.63642763,2098.0,2096.6,3.08554641]
[1772697296559,1.63642763,2098.0,2096.6,1.58154641]
[1772697296758,1.63642763,2098.0,2096.7,1.503]
[1772697297844,1.19166785,2097.9,2096.8,1.19229301]
[1772697298030,2.82809548,2097.9,2096.8,1.19229301]
[1772697298423,1.63642763,2097.8,2096.6,1.19236765]
[1772697298620,3.68085419,2097.6,2096.4,1.19252051]
[1772697298824,3.68085419,2097.6,2096.5,1.5]
[1772697298825,2.75521873,2097.5,2096.5,1.5]
[1772697299035,1.63642763,2097.4,2096.5,1.5]
[1772697299417,1.63642763,2097.4,2096.4,1.5]
[1772697299623,1.63642763,2097.4,2096.3,1.19553344]
[1772697299842,1.63642763,2097.2,2096.4,1.499]
[1772697300632,1.19200877,2097.3,2096.4,1.499]
[1772697300836,1.19200877,2097.3,2096.4,3.08054641]
[1772697301341,1.19197012,2097.4,2096.4,3.08054641]
[1772697301541,2.82835943,2097.5,2096.4,3.08054641]
[1772697301854,2.82835943,2097.5,2096.5,1.19246362]
[1772697302041,4.76698365,2097.8,2096.6,1.58154641]
[1772697302246,1.63642763,2097.9,2096.6,1.58154641]
[1772697302441,2.82813129,2097.9,2096.6,1.58154641]
[1772697302640,2.82813129,2097.9,2096.8,1.58154641]
[1772697303239,1.63642763,2097.8,2096.5,1.19246362]
[1772697303749,1.63642763,2097.8,2096.5,2.77401003]
[1772697303955,1.63642763,2097.8,2096.6,1.4951]
[1772697304162,1.63642763,2097.6,2096.7,2.68534988]
[1772697304565,1.63642763,2097.6,2096.6,1.19349036]
[1772697304855,1.63642763,2097.4,2096.7,1.492]
[1772697305357,1.63642763,2097.4,2096.6,0.0011]
[1772697305545,1.63642763,2097.2,2096.6,1.4921]
[1772697305949,1.63642763,2097.2,2096.7,1.491]
[1772697306253,1.63642763,2097.2,2096.6,0.0011]
[1772697306254,1.63642763,2097.0,2096.6,0.0011]
[1772697308250,1.19223615,2096.9,2096.6,0.0011]
[1772697308658,2.82866378,2096.9,2096.6,0.0011]
[1772697309932,2.82866378,2096.9,2096.1,0.0011]
[1772697309933,1.63642763,2096.6,2096.1,0.0011]
[1772697310185,2.82889125,2096.5,2096.1,0.0011]
[1772697310334,2.82889125,2096.5,2096.1,0.0022]
[1772697310858,1.19246362,2096.5,2096.1,0.0022]
[1772697311033,6.81330818,2097.0,2096.1,0.0022]
[1772697311034,2.1522137,2097.6,2096.5,1.58154641]
[1772697311230,2.1522137,2097.6,2096.4,1.42545307]
[1772697311231,0.001,2098.2,2096.7,1.58154641]
[1772697311232,4.76658125,2098.0,2096.7,1.58154641]
[1772697311459,4.76658125,2098.0,2096.8,1.482]
[1772697311460,1.63642763,2097.9,2096.8,1.482]
[1772697312555,1.63642763,2098.1,2097.0,1.58154641]
[1772697312756,1.63642763,2098.1,2096.7,1.58154641]
[1772697313066,1.63642763,2098.1,2096.9,1.58154641]
[1772697313263,1.19249979,2098.2,2097.1,1.58154641]
[1772697313767,1.19249979,2098.2,2097.2,1.479]
[1772697313768,2.82892742,2098.2,2097.2,1.479]
[1772697313966,2.82892742,2098.2,2096.5,4.76984698]
[1772697314159,2.82892742,2098.2,2096.6,1.478]
[1772697314160,2.75550437,2098.1,2096.6,1.478]
[1772697314466,0.001,2098.2,2096.7,3.05954641]
[1772697314665,1.63642763,2098.1,2096.7,3.05954641]
[1772697315553,1.63642763,2097.8,2096.5,2.66946362]
[1772697315858,2.04543179,2097.9,2096.6,1.476]
[1772697315859,1.63642763,2097.6,2096.6,1.476]
[1772697316236,1.63642763,2097.6,2096.9,0.0011]
[1772697316731,2.82832274,2097.5,2096.9,0.0011]
[1772697316937,1.19189511,2097.5,2096.9,0.0011]
[1772697317738,0.001,2098.0,2097.0,1.58154641]
[1772697317942,0.31857797,2098.7,2097.1,0.32333552]
[1772697318139,0.001,2098.7,2097.4,1.58154641]
[1772697318374,0.001,2098.7,2097.6,1.58154641]
[1772697318881,0.001,2098.7,2097.8,1.7758694]
[1772697319034,1.63742763,2099.8,2097.7,1.19178147]
[1772697319035,0.001,2099.8,2097.9,1.7758694]
[1772697319238,2.76537996,2099.7,2098.3,1.7758694]
[1772697319556,0.001,2099.8,2098.5,1.7758694]
[1772697319866,0.001,2099.8,2098.4,1.473]
[1772697319867,0.001,2099.8,2098.7,1.7758694]
[1772697320272,0.001,2100.4,2099.0,1.7758694]
[1772697320440,2.76537996,2100.3,2099.0,1.7758694]
[1772697320869,2.76537996,2100.3,2099.2,1.7758694]
[1772697321169,0.001,2100.4,2099.4,1.7758694]
[1772697321477,0.001,2100.4,2099.5,1.471]
[1772697321664,0.001,2100.4,2099.6,1.471]
[1772697322472,0.001,2100.4,2099.1,2.62098661]
[1772697322473,0.001,2100.4,2099.7,1.7758694]
[1772697322773,0.001,2100.4,2099.5,3.2458694]
[1772697322956,1.1897963,2101.2,2099.7,1.7758694]
[1772697323467,2.95345587,2101.4,2099.9,1.7758694]
[1772697323973,1.18972345,2101.4,2099.9,1.7758694]
[1772697324453,1.18951325,2101.7,2099.9,1.7758694]
[1772697324967,1.76373242,2101.8,2100.3,1.7758694]
[1772697325273,4.75691037,2102.3,2100.3,1.7758694]
[1772697325274,4.75736187,2102.1,2100.3,1.7758694]
[1772697326076,4.75700676,2102.2,2100.4,1.7758694]
[1772697326373,4.75700676,2102.2,2100.6,1.7758694]
[1772697326374,6.52073918,2102.2,2100.6,1.7758694]
[1772697326580,2.95296275,2102.2,2100.6,1.7758694]
[1772697327057,2.95296275,2102.2,2100.8,1.7758694]
[1772697327247,6.67305197,2102.6,2101.0,1.82429818]
[1772697327446,3.10587005,2102.5,2101.1,1.468]
[1772697327656,3.10587005,2102.5,2101.0,1.82429818]
[1772697327657,3.10587005,2102.5,2101.2,1.468]
[1772697328068,1.91680941,2102.4,2101.1,1.467]
[1772697328278,1.91680941,2102.4,2100.7,1.19007949]
[1772697328475,1.91680941,2102.4,2100.9,1.467]
[1772697328948,1.91680941,2102.2,2101.0,1.18990956]
[1772697330175,1.91680941,2102.2,2100.9,1.18994415]
[1772697330379,1.91680941,2102.2,2101.0,1.467]
[1772697330677,1.91680941,2102.2,2100.9,1.467]
[1772697331246,1.91680941,2102.0,2100.9,1.467]
[1772697331445,1.91680941,2102.0,2101.0,1.467]
[1772697333284,3.10620947,2101.9,2100.7,1.19007949]
[1772697333489,1.91680941,2101.8,2100.9,1.466]
[1772697333978,1.18940006,2101.9,2100.9,1.466]
[1772697334178,1.18940006,2101.9,2100.9,3.29029818]
[1772697334381,1.91680941,2102.2,2101.0,1.82429818]
[1772697334382,1.1892869,2102.1,2101.0,1.82429818]
[1772697335169,4.75770366,2102.3,2100.7,1.19007949]
[1772697335170,1.91680941,2102.0,2101.2,1.1897963]
[1772697335482,1.91680941,2102.0,2100.8,4.75999731]
[1772697335483,1.91680941,2102.0,2100.9,1.1899662]
[1772697335888,1.91680941,2102.0,2101.0,1.466]
[1772697336658,1.91680941,2102.0,2100.9,1.1899662]
[1772697336857,1.91680941,2102.0,2101.0,1.466]
[1772697337280,1.18940006,2101.9,2101.0,2.65586109]
[1772697337581,6.67440967,2102.0,2101.0,2.65586109]
[1772697337582,3.10618115,2102.0,2101.0,2.65586109]
[1772697337885,1.18933981,2102.1,2101.0,2.65586109]
[1772697338083,4.75703797,2102.2,2101.0,2.65586109]
[1772697338084,1.18923033,2102.2,2101.1,1.82429818]
[1772697338258,1.18923033,2102.2,2101.1,3.28929818]
[1772697339050,1.18923033,2102.2,2101.1,1.82429818]
[1772697339252,1.18923033,2102.2,2101.2,1.465]
[1772697340059,1.91680941,2102.1,2101.2,1.1897963]
[1772697340256,1.91680941,2102.1,2101.3,1.464]
[1772697340661,1.91680941,2102.1,2101.2,1.1897963]
[1772697340998,1.91680941,2102.1,2101.3,1.464]
[1772697341168,1.91680941,2102.1,2100.8,4.76007463]
[1772697341496,1.91680941,2102.1,2100.9,1.464]
[1772697341691,1.91680941,2102.1,2100.8,4.76007463]
[1772697342065,3.10615289,2102.0,2100.8,4.76007463]
[1772697342267,1.91680941,2101.9,2100.9,1.463]
[1772697342467,1.91680941,2101.9,2101.0,1.463]
[1772697343378,1.91680941,2101.9,2100.8,4.76007463]
[1772697343568,1.91680941,2101.9,2100.9,1.462]
[1772697343978,4.41994018,2101.9,2100.6,0.0011]
[1772697344285,4.41994018,2101.9,2101.0,1.462]
[1772697344286,3.10632266,2101.7,2101.0,1.462]
[1772697345285,1.91680941,2101.6,2100.6,4.76148052]
[1772697345486,1.91680941,2101.6,2100.7,2.65106951]
[1772697346562,1.91680941,2101.4,2100.7,1.46]
[1772697347284,1.91680941,2101.4,2100.6,1.19121935]
[1772697347285,1.91680941,2101.4,2100.6,0.0011]
[1772697347586,1.91680941,2101.4,2100.8,1.46]
[1772697348086,1.35140113,2101.4,2100.8,1.46]
[1772697348794,1.18973968,2101.3,2100.8,1.46]
[1772697349287,1.18973968,2101.3,2100.6,1.19123317]
[1772697349586,1.18973968,2101.3,2100.7,1.458]
[1772697349788,1.18973968,2101.3,2100.6,0.0011]
[1772697349789,3.00647858,2101.3,2100.6,0.0011]
[1772697349963,1.8167389,2101.2,2100.6,1.4581]
[1772697350164,1.8167389,2101.2,2100.6,0.0011]
[1772697350771,3.00625215,2101.7,2100.6,0.0011]
[1772697350989,2.76309152,2101.6,2100.6,0.0011]
[1772697351764,2.76309152,2101.6,2100.6,1.83575514]
[1772697352767,1.18962645,2101.5,2100.7,1.19007949]
[1772697352973,2.76309152,2101.4,2100.8,1.455]
[1772697353289,1.18962645,2101.5,2100.8,1.455]
[1772697353675,1.18962645,2101.5,2100.7,1.19007949]
[1772697354004,2.76790825,2101.4,2100.8,1.453]
[1772697354688,1.18962645,2101.5,2100.8,1.453]
[1772697354886,1.18962645,2101.5,2100.7,1.19007949]
[1772697354887,4.75850582,2101.6,2100.9,1.453]
[1772697355664,6.57524472,2101.6,2100.9,1.453]
[1772697355879,1.8167389,2101.5,2101.0,1.451]
[1772697356374,0.001,2101.4,2101.0,1.451]
[1772697356763,1.19068306,2101.4,2100.9,0.0011]
[1772697356960,1.19068306,2101.4,2101.0,1.45]
[1772697357164,1.19068306,2101.4,2100.9,0.0011]
[1772697357365,1.19068306,2101.4,2101.0,1.45]
[1772697357869,1.19068306,2101.4,2101.1,1.449]
[1772697358068,1.19068306,2101.4,2100.6,6.59607312]
[1772697358069,1.8167389,2101.2,2100.6,0.0011]
[1772697358279,2.76819295,2101.3,2099.7,4.35414961]
[1772697358280,1.8167389,2101.0,2100.2,1.449]
[1772697358485,4.58493185,2100.9,2100.2,1.449]
[1772697358683,2.76819295,2100.8,2100.2,1.449]
[1772697358889,1.19007949,2100.7,2100.2,1.449]
[1772697359792,1.19007949,2100.7,2100.1,0.0011]
[1772697359992,1.19007949,2100.7,2100.2,1.447]
[1772697360195,1.19007949,2100.7,2100.1,0.0011]
[1772697360370,3.00681839,2100.7,2100.1,0.0011]
[1772697360567,3.00681839,2100.7,2100.2,1.447]
[1772697361097,8.0558397,2101.3,2100.2,1.447]
[1772697361098,1.18973968,2101.3,2100.3,1.83465514]
[1772697361677,1.18973968,2101.3,2100.4,1.446]
[1772697361678,3.00647858,2101.3,2100.4,1.446]
[1772697362614,0.001,2101.4,2100.5,1.83465514]
[1772697362908,0.001,2101.4,2100.7,1.83465514]
[1772697363275,0.001,2101.4,2100.3,4.76063026]
[1772697363276,1.8177389,2101.4,2100.2,4.761449]
[1772697363475,1.8177389,2101.4,2100.7,1.444]
[1772697364207,1.8177389,2101.4,2100.4,1.443]
[1772697364208,1.8167389,2101.2,2100.4,1.443]
[1772697364907,1.19068306,2101.4,2100.5,1.19019281]
[1772697365075,3.00742196,2101.4,2100.5,1.19019281]
[1772697365584,3.00742196,2101.4,2100.6,1.442]
[1772697365779,3.00742196,2101.4,2100.4,3.02486031]
[1772697365780,1.8167389,2101.3,2100.2,4.76137564]
[1772697366105,1.8167389,2101.2,2100.2,6.59603078]
[1772697366307,1.8167389,2101.2,2100.3,1.442]
[1772697366674,1.8167389,2101.2,2100.3,1.441]
[1772697366902,1.8167389,2101.2,2100.3,2.63128726]
[1772697366903,1.18985293,2101.1,2100.3,2.63128726]
[1772697367493,1.18985293,2101.1,2100.4,1.44]
[1772697367804,1.18973968,2101.3,2100.4,3.27465514]
[1772697368111,1.19072058,2101.4,2100.5,1.83465514]
[1772697368275,1.19072058,2101.4,2100.5,3.27465514]
[1772697368671,0.001,2101.4,2100.5,1.83465514]
[1772697368904,0.001,2101.4,2100.7,1.19007949]
[1772697369710,0.001,2101.2,2100.8,1.439]
[1772697369880,0.001,2101.4,2100.9,1.438]
[1772697370201,0.001,2101.4,2101.0,1.438]
[1772697370703,0.001,2101.4,2100.7,1.19007949]
[1772697370704,0.001,2101.4,2100.8,1.83465514]
[1772697370877,0.001,2101.4,2100.9,2.62692377]
[1772697371078,0.001,2101.4,2100.8,3.02464027]
[1772697371304,0.001,2101.4,2100.6,1.19010521]
[1772697371503,1.8177389,2101.4,2100.5,1.19124737]
[1772697371704,1.8177389,2101.4,2100.5,2.62828706]
[1772697371908,1.8177389,2101.4,2100.5,2.57828706]
[1772697372416,0.001,2101.4,2100.7,1.83465514]
[1772697372608,0.001,2101.4,2100.4,3.02486606]
[1772697372789,0.001,2101.4,2100.8,1.436]
[1772697372790,1.8177389,2101.4,2100.8,1.436]
[1772697373108,3.00647858,2101.3,2100.7,1.435]
[1772697373684,1.8167389,2101.2,2100.5,1.435]
[1772697374006,1.8167389,2101.2,2100.3,1.19136607]
[1772697374007,1.8167389,2101.2,2100.4,1.435]
[1772697374776,1.8167389,2101.2,2100.3,1.19139545]
[1772697374977,1.18985293,2101.1,2100.4,1.434]
[1772697375703,1.18985293,2101.1,2100.3,1.1913806]
[1772697375904,1.18985293,2101.1,2100.3,2.6243806]
[1772697376683,1.18985293,2101.1,2100.3,1.1913806]
[1772697376883,1.18985293,2101.1,2100.4,2.6232329]
[1772697377314,3.00656967,2101.2,2100.4,4.45788804]
[1772697377611,1.18983077,2101.2,2100.4,4.45788804]
[1772697377911,1.18983077,2101.2,2100.5,1.432]
[1772697378287,1.18983077,2101.2,2100.6,1.431]
[1772697378506,1.18978507,2101.3,2100.6,1.431]
[1772697378794,1.19072377,2101.4,2100.6,1.431]
[1772697378999,1.19072377,2101.4,2100.7,1.19007949]
[1772697379410,2.89456202,2101.9,2100.8,1.74841973]
[1772697379613,1.70511879,2101.8,2100.7,1.19007949]
[1772697379800,2.76966313,2101.7,2100.8,1.43]
[1772697379995,1.70511879,2101.7,2100.8,3.17841973]
[1772697380684,1.70511879,2101.7,2100.6,2.93851166]
[1772697380889,1.70511879,2101.7,2100.7,3.17741973]
[1772697381309,1.18956985,2101.6,2100.8,2.93844257]
[1772697381697,2.89467527,2101.7,2100.8,2.93844257]
[1772697382111,1.70511879,2101.6,2100.9,1.428]
[1772697382308,0.001,2101.5,2100.9,1.428]
[1772697382514,0.001,2101.5,2100.8,1.19002284]
[1772697382714,0.001,2101.5,2100.9,1.428]
[1772697383412,0.001,2101.5,2101.0,1.18990956]
[1772697383584,0.001,2101.5,2101.1,1.427]
[1772697384003,1.70611879,2101.5,2100.5,1.19126429]
[1772697384199,1.70611879,2101.5,2100.6,3.17541973]
[1772697385301,1.70611879,2101.5,2100.7,1.74841973]
[1772697385702,1.70611879,2101.5,2100.6,1.427]
[1772697385703,2.89480185,2101.4,2100.8,1.426]
[1772697386122,2.89480185,2101.4,2100.6,1.19009322]
[1772697386329,2.89480185,2101.4,2100.9,1.425]
[1772697386925,2.89480185,2101.4,2100.6,1.19009322]
[1772697387105,2.89480185,2101.4,2100.9,1.425]
[1772697387310,2.89480185,2101.4,2100.9,1.424]
[1772697387727,2.89480185,2101.4,2100.5,6.51014906]
[1772697387925,2.89480185,2101.4,2100.6,1.424]
[1772697388715,1.70511879,2101.4,2100.6,1.424]
[1772697388914,1.19065444,2101.5,2100.7,1.72534916]
[1772697389128,1.19065444,2101.5,2100.8,1.423]
[1772697389129,1.19063578,2101.5,2100.8,1.423]
[1772697390337,0.001,2101.5,2100.9,2.6119662]
[1772697390738,0.001,2101.5,2100.9,4.33731536]
[1772697390914,0.001,2101.5,2100.6,2.91544406]
[1772697390915,1.74459568,2101.5,2100.6,2.91544406]
[1772697391235,1.74459568,2101.5,2100.7,1.421]
[1772697391434,1.74459568,2101.5,2100.6,2.91544406]
[1772697391626,1.74459568,2101.5,2100.7,1.421]
[1772697392441,1.18968306,2101.4,2100.7,2.61104237]
[1772697393337,1.18968306,2101.4,2100.7,1.19004237]
[1772697393641,1.18968306,2101.4,2100.8,1.419]
[1772697394022,0.001,2101.3,2100.8,1.419]
[1772697394635,0.001,2101.3,2100.8,2.60899657]
[1772697394944,0.001,2101.3,2100.9,1.72534916]
[1772697395143,0.001,2101.5,2101.0,1.418]
[1772697395144,1.19062883,2101.5,2101.0,1.418]
[1772697395325,0.001,2101.5,2101.0,1.418]
[1772697395522,1.19063377,2101.5,2101.1,1.417]
[1772697395846,1.19063377,2101.5,2101.2,1.417]
[1772697396931,1.19063377,2101.5,2101.2,1.416]
[1772697397243,0.001,2101.5,2101.2,1.416]